bitfinex/quotes_ETHUSD_20260117
["timestamp","ask_amount","ask_price","bid_price","bid_amount"]
[1768689549636,0.67668809,3298.3,3297.7,1.41253981]
[1768689549804,0.67668809,3298.3,3297.7,0.499]
[1768689550436,0.67668809,3298.3,3297.7,1.41253981]
[1768689550625,0.00080784,3298.3,3297.8,0.91353981]
[1768689551020,0.00080784,3298.3,3297.5,0.91353981]
[1768689551324,0.93436931,3298.3,3297.4,0.91553981]
[1768689551525,0.00080784,3298.3,3297.5,1.41253981]
[1768689552316,0.00080784,3298.3,3297.5,0.91353981]
[1768689552537,0.00080784,3298.3,3297.6,0.499]
[1768689554042,0.00080784,3298.3,3297.7,0.499]
[1768689556232,0.93436931,3298.3,3297.7,0.499]
[1768689557049,0.00080784,3298.3,3297.7,1.41253981]
[1768689558637,0.00080784,3298.3,3297.7,0.91353981]
[1768689558842,0.001,3298.0,3297.8,0.499]
[1768689559958,0.001,3298.0,3297.8,1.41253981]
[1768689561124,0.001,3298.0,3297.9,0.91353981]
[1768689562531,0.00080784,3298.3,3297.9,1.90150894]
[1768689562857,0.00080784,3298.3,3298.0,0.498]
[1768689563156,0.00080784,3298.3,3297.9,0.498]
[1768689565140,3.03267274,3298.3,3297.9,0.498]
[1768689565456,1.82615963,3298.2,3297.6,0.498]
[1768689565839,1.82615963,3298.2,3297.6,2.39950894]
[1768689566339,1.82615963,3298.2,3297.6,1.90150894]
[1768689566666,1.82615963,3298.2,3297.6,2.39950894]
[1768689567158,6.06453764,3298.3,3297.4,0.002]
[1768689567159,0.00080784,3298.3,3297.7,1.90150894]
[1768689567360,0.00080784,3298.3,3297.8,1.90150894]
[1768689567564,0.00080784,3298.3,3297.9,0.498]
[1768689568360,0.00080784,3298.3,3297.9,2.39950894]
[1768689568566,0.00080784,3298.3,3297.9,1.90150894]
[1768689568729,1.82615963,3298.2,3297.6,0.498]
[1768689569244,4.85813716,3298.2,3297.6,0.498]
[1768689569639,4.85813716,3298.2,3297.5,1.90150894]
[1768689569943,3.03270629,3298.3,3297.6,1.90150894]
[1768689570537,0.00080784,3298.3,3297.7,1.90150894]
[1768689570838,0.00080784,3298.3,3298.1,0.002]
[1768689575384,0.00080784,3298.3,3298.1,2.3313224]
[1768689576154,0.00080784,3298.3,3298.1,0.002]
[1768689578098,3.03131346,3298.9,3298.3,2.3293224]
[1768689578270,5.23211114,3298.9,3298.3,2.3293224]
[1768689578456,2.20079768,3298.8,3298.3,2.3293224]
[1768689579413,5.23228098,3298.8,3298.1,2.3313224]
[1768689579776,2.20079768,3298.7,3298.1,2.3313224]
[1768689581675,5.23232002,3298.7,3298.1,2.3313224]
[1768689581900,2.20079768,3298.6,3298.1,2.8293224]
[1768689582600,2.20079768,3298.6,3298.1,2.3313224]
[1768689582797,2.20079768,3298.6,3298.1,2.8293224]
[1768689583130,0.001,3298.5,3298.1,2.3313224]
[1768689583311,0.001,3298.5,3298.1,2.8293224]
[1768689584881,2.20179768,3298.5,3298.1,2.3313224]
[1768689585080,2.20179768,3298.5,3298.1,2.8293224]
[1768689585281,0.001,3298.5,3298.1,2.8293224]
[1768689586612,0.001,3298.5,3298.2,2.8273224]
[1768689586917,2.20079768,3298.7,3298.2,2.8273224]
[1768689588718,2.20079768,3298.7,3298.2,2.7773224]
[1768689590529,2.20079768,3298.7,3298.2,5.80926821]
[1768689591002,2.20079768,3298.7,3298.3,2.3293224]
[1768689591198,5.23213498,3298.9,3298.3,2.3293224]
[1768689591628,2.20079768,3298.8,3298.3,2.3293224]
[1768689592534,3.0313373,3298.9,3298.3,2.3293224]
[1768689592831,5.84101613,3298.9,3298.3,2.3293224]
[1768689593634,3.0313373,3298.9,3298.3,2.3293224]
[1768689593823,2.80967883,3298.8,3298.3,2.3293224]
[1768689594022,3.0313373,3298.9,3298.3,2.3293224]
[1768689594023,2.80967883,3299.0,3298.4,2.96204266]
[1768689594327,2.80967883,3299.0,3298.3,6.49183321]
[1768689594728,2.66010137,3298.8,3298.3,6.49183321]
[1768689595038,2.66010137,3298.8,3298.3,9.52369811]
[1768689596038,2.81048806,3299.1,3298.4,2.96204266]
[1768689596338,2.80967883,3299.0,3298.4,2.96204266]
[1768689597815,0.00080923,3299.1,3298.4,2.96204266]
[1768689598016,2.81048806,3299.1,3298.6,2.96204266]
[1768689598344,2.81048806,3299.1,3298.5,3.03168106]
[1768689599235,2.81048806,3299.1,3298.5,5.99372372]
[1768689600912,2.81048806,3299.1,3298.3,6.4918895]
[1768689600913,2.80967883,3299.0,3298.3,6.4918895]
[1768689601224,2.80967883,3299.0,3298.5,3.03164969]
[1768689602960,2.80967883,3299.0,3298.4,3.03177298]
[1768689606456,0.001,3298.7,3298.4,3.03177298]
[1768689606626,2.80967883,3298.9,3298.4,3.03177298]
[1768689607258,2.80967883,3298.9,3298.4,6.06354596]
[1768689607757,2.80967883,3298.9,3298.4,2.96204266]
[1768689608682,0.72759338,3298.9,3298.4,2.96204266]
[1768689610054,0.72759338,3298.9,3298.5,3.03168106]
[1768689611865,3.30948806,3299.1,3298.5,9.02540478]
[1768689615259,0.49980923,3299.1,3298.6,2.96204266]
[1768689615754,3.30948806,3299.1,3298.6,2.96204266]
[1768689616356,3.30948806,3299.1,3298.7,3.03149725]
[1768689617865,3.30948806,3299.1,3298.6,5.99359549]
[1768689619167,3.30948806,3299.1,3298.7,0.002]
[1768689619336,0.001,3298.8,3298.7,0.002]
[1768689622053,4.12535461,3299.4,3298.7,3.53384355]
[1768689622257,4.12535461,3299.4,3298.8,3.53184355]
[1768689624491,4.12535461,3299.4,3298.9,3.03131346]
[1768689624780,4.12535461,3299.4,3298.9,6.56315701]
[1768689624978,4.12535461,3299.4,3298.9,3.03131346]
[1768689626468,4.12535461,3299.4,3298.9,3.53184355]
[1768689627562,4.12535461,3299.4,3298.7,3.53465286]
[1768689629376,4.12535461,3299.4,3298.9,3.53184355]
[1768689629377,0.499,3299.4,3298.9,3.53184355]
[1768689630377,4.12535461,3299.4,3298.9,3.53184355]
[1768689631276,4.12535461,3299.4,3299.0,3.03322158]
[1768689631451,0.001,3299.1,3299.0,3.03322158]
[1768689632806,0.001,3299.1,3299.0,6.56506513]
[1768689633357,0.001,3299.1,3299.0,0.002]
[1768689633553,0.348,3299.4,3299.1,3.53184355]
[1768689634256,0.348,3299.4,3299.0,0.002]
[1768689634455,0.348,3299.4,3299.0,4.00425318]
[1768689634656,4.412553,3300.0,3299.0,4.50225318]
[1768689634657,0.00080561,3300.0,3299.0,4.50225318]
[1768689634884,0.00080561,3300.0,3299.2,4.00225318]
[1768689635285,0.00080561,3300.0,3299.4,4.00225318]
[1768689635492,0.00080561,3300.0,3299.6,4.00225318]
[1768689636772,0.00080561,3300.0,3299.8,4.00225318]
[1768689637393,3.52877258,3300.6,3300.0,4.00225318]
[1768689637894,0.499,3300.6,3300.0,4.00225318]
[1768689638394,0.00080553,3300.8,3300.0,4.00225318]
[1768689638690,0.00080553,3300.8,3300.2,4.00225318]
[1768689638987,0.001,3301.0,3300.4,0.00080561]
[1768689639188,0.001,3301.0,3300.5,4.00225318]
[1768689640187,0.001,3301.0,3300.5,4.50025318]
[1768689640497,0.001,3301.0,3300.6,4.00225318]
[1768689642002,0.001,3301.0,3300.7,4.00225318]
[1768689642669,0.001,3301.0,3300.6,3.02974301]
[1768689642670,3.03059324,3301.5,3300.8,4.00225318]
[1768689642869,3.03059324,3301.5,3300.8,4.00305944]
[1768689643177,0.0016052,3301.5,3300.8,4.00305944]
[1768689644293,0.0016052,3301.5,3301.0,4.00225318]
[1768689644496,0.001,3301.2,3301.0,4.00225318]
[1768689645203,0.0016052,3301.5,3300.9,3.0294768]
[1768689645204,0.0016052,3301.5,3301.1,4.00225318]
[1768689645499,0.0016052,3301.5,3300.3,4.40788364]
[1768689645500,3.83126368,3301.2,3300.1,0.36230112]
[1768689645712,3.83126368,3301.2,3300.1,4.00225318]
[1768689645877,3.83126368,3301.2,3300.2,4.00225318]
[1768689646081,3.83126368,3301.2,3300.3,4.00225318]
[1768689646484,9.88904394,3301.1,3300.4,4.00305879]
[1768689647034,6.85975068,3301.1,3300.4,4.00305879]
[1768689647331,0.68605569,3301.0,3300.4,4.00305879]
[1768689648019,3.02929326,3301.1,3300.4,4.00305879]
[1768689649104,3.02929326,3301.1,3300.5,4.00225318]
[1768689649409,3.83126368,3301.2,3300.5,4.00225318]
[1768689649724,0.00080626,3301.2,3300.7,4.00225318]
[1768689651795,0.50060472,3301.8,3301.2,4.01893663]
[1768689651796,0.00160472,3301.8,3301.2,4.01893663]
[1768689652098,0.00160472,3301.8,3301.2,4.51693663]
[1768689652589,3.03025641,3301.8,3301.2,4.51693663]
[1768689652949,4.40788364,3301.6,3301.1,0.00160536]
[1768689653227,6.05894094,3301.8,3300.8,0.00080634]
[1768689653228,4.00194719,3301.4,3300.8,0.00080634]
[1768689653428,4.00194719,3301.4,3300.8,4.01974297]
[1768689653790,7.03102522,3301.4,3300.8,4.01974297]
[1768689657444,7.03102522,3301.4,3301.0,0.002]
[1768689657848,0.001,3301.1,3301.0,0.002]
[1768689658749,4.00294719,3301.1,3299.5,4.35864846]
[1768689658899,4.00294719,3301.1,3300.1,7.0491229]
[1768689658900,3.47697023,3300.9,3300.1,7.0491229]
[1768689659105,3.47697023,3300.9,3300.3,4.01893663]
[1768689659304,0.40029472,3301.0,3300.4,4.01974224]
[1768689660238,3.42972435,3301.0,3300.4,4.01974224]
[1768689660441,6.98595241,3301.0,3300.4,4.01974224]
[1768689660646,10.01538204,3301.0,3300.4,4.01974224]
[1768689660942,1.0016382,3300.9,3300.4,4.01974224]
[1768689661244,4.59682418,3300.9,3300.4,4.01974224]
[1768689662367,3.02956858,3300.8,3300.4,4.01974224]
[1768689664070,7.62632803,3300.9,3300.4,4.01974224]
[1768689665032,3.74657365,3300.8,3299.9,0.002]
[1768689665232,3.74576804,3300.6,3299.9,0.002]
[1768689665564,3.74576804,3300.6,3299.9,4.02093663]
[1768689667398,3.02984396,3300.5,3299.9,4.02093663]
[1768689667795,6.77555572,3300.6,3300.0,4.01893663]
[1768689670238,0.00080561,3300.8,3300.1,4.51693663]
[1768689670964,3.0304064,3300.8,3300.3,4.01893663]
[1768689671634,3.96106779,3300.8,3300.3,4.01893663]
[1768689672039,0.00080561,3300.8,3300.3,4.01893663]
[1768689677446,0.00080561,3300.8,3300.4,4.01893663]
[1768689678568,0.00080561,3300.8,3300.4,3.75893663]
[1768689679071,0.00080561,3300.8,3300.5,4.01893663]
[1768689680776,0.00080561,3300.8,3300.6,4.01893663]
[1768689681008,0.001,3301.1,3300.6,4.01893663]
[1768689681812,0.001,3301.1,3300.6,4.51693663]
[1768689682976,0.001,3301.1,3300.8,4.63691201]
[1768689684090,2.88017493,3301.5,3300.8,4.63691201]
[1768689684289,4.50074172,3301.8,3301.2,4.63691201]
[1768689684888,7.52943172,3301.8,3301.2,4.63691201]
[1768689686383,7.52943172,3301.8,3301.3,4.63691201]
[1768689686708,3.03029472,3301.8,3301.3,4.63691201]
[1768689688314,0.00160472,3301.8,3301.3,4.63691201]
[1768689688526,0.00160472,3301.8,3301.3,3.02908156]
[1768689688726,0.00160472,3301.8,3301.4,4.63691201]
[1768689689389,3.02923917,3302.1,3301.7,4.63771209]
[1768689689390,2.87884389,3302.1,3301.7,4.63771209]
[1768689691547,0.00080611,3302.2,3301.8,4.63691201]
[1768689692697,7.43697682,3302.2,3301.8,4.63691201]
[1768689693532,3.02909318,3302.2,3301.8,4.63691201]
[1768689693907,3.02909318,3302.2,3301.8,4.5744525]
[1768689693908,7.66263407,3302.2,3301.8,4.5744525]
[1768689694223,7.66263407,3302.2,3301.7,0.00080008]
[1768689694406,7.66263407,3302.2,3301.7,4.81758819]
[1768689694834,0.001,3301.9,3301.7,4.81758819]
[1768689704811,0.001,3301.9,3301.7,5.31558819]
[1768689711446,0.001,3301.9,3301.7,4.81758819]
[1768689711646,0.00080611,3302.2,3301.8,4.81678811]
[1768689713868,4.90073627,3302.2,3301.8,4.81678811]
[1768689714180,0.00160628,3302.5,3301.8,4.79373117]
[1768689714394,4.89993016,3302.4,3301.8,4.79453736]
[1768689714704,4.90153644,3302.5,3301.8,4.79453736]
[1768689714837,0.00160628,3302.5,3301.8,4.79453736]
[1768689715042,0.00160628,3302.5,3302.0,4.79373117]
[1768689718250,0.001,3302.2,3302.0,4.79373117]
[1768689718507,3.02798877,3302.6,3301.9,4.79373117]
[1768689718783,7.92775758,3302.7,3302.1,4.79533761]
[1768689719577,4.89993016,3302.7,3302.1,4.79533761]
[1768689719740,4.89993016,3302.7,3302.1,5.29333761]
[1768689720081,4.89993016,3302.7,3302.2,4.79373117]
[1768689720956,7.92777935,3302.7,3302.2,4.79373117]
[1768689722668,4.89993016,3302.7,3302.2,4.79373117]
[1768689723875,3.02855268,3302.8,3302.2,4.79373117]
[1768689724047,7.92848284,3302.8,3302.2,4.79373117]
[1768689729459,0.0008,3302.8,3302.2,4.79373117]
[1768689729783,0.0008,3302.8,3302.5,0.002]
[1768689730891,0.0008,3302.8,3302.5,4.79573117]
[1768689731692,0.0008,3302.8,3302.5,5.29373117]
[1768689733559,3.02729913,3303.3,3302.8,4.79373117]
[1768689733992,4.89993016,3303.3,3302.8,4.79373117]
[1768689736194,4.89993016,3303.4,3302.8,4.79373117]
[1768689737569,5.39793016,3303.6,3302.8,4.79373117]
[1768689737901,4.89993016,3303.5,3302.8,4.79373117]
[1768689738689,3.02692655,3303.7,3302.8,4.79373117]
[1768689738690,4.89993016,3304.2,3302.9,4.79373117]
[1768689738890,4.89993016,3304.2,3303.1,4.79373117]
[1768689738891,4.89993016,3304.1,3303.1,4.79373117]
[1768689739471,4.89993016,3303.9,3303.1,4.79373117]
[1768689740173,4.89993016,3305.1,3303.6,4.79373117]
[1768689740372,9.07660653,3305.2,3303.6,4.79373117]
[1768689740373,4.89993016,3304.6,3303.6,5.29173117]
[1768689741078,5.39793016,3304.6,3303.6,5.29173117]
[1768689741699,3.02532097,3305.5,3303.8,4.79373117]
[1768689741700,4.4035832,3305.3,3303.8,4.79373117]
[1768689742007,4.4035832,3305.3,3304.0,4.79373117]
[1768689742008,4.89993016,3305.2,3304.0,4.79373117]
[1768689742595,5.5643126,3304.8,3303.9,0.498]
[1768689742776,5.41271888,3304.8,3304.0,5.22033561]
[1768689744211,5.41271888,3304.8,3304.1,3.02654278]
[1768689744409,5.41271888,3304.8,3304.2,5.71833561]
[1768689746724,5.41271888,3304.8,3304.3,5.22033561]
[1768689747409,8.59003488,3305.0,3304.3,5.22033561]
[1768689747575,5.5643126,3305.0,3304.3,5.22033561]
[1768689747775,3.02573258,3305.0,3304.3,5.22033561]
[1768689747981,5.5643126,3304.9,3304.3,5.22033561]
[1768689748401,3.02573258,3305.0,3304.3,5.22033561]
[1768689749001,8.59004518,3305.0,3304.3,5.22033561]
[1768689749818,5.5643126,3305.0,3304.3,5.22033561]
[1768689751400,5.5643126,3305.0,3304.4,5.22033561]
[1768689752905,5.5643126,3305.0,3304.5,0.498]
[1768689753224,5.5643126,3305.0,3304.5,5.71833561]
[1768689754435,5.39295513,3304.5,3303.6,0.002]
[1768689754727,5.39295513,3304.3,3303.6,0.002]
[1768689755294,5.39295513,3304.1,3303.6,0.002]
[1768689757532,5.39295513,3304.0,3303.6,0.002]
[1768689760134,8.41959035,3304.0,3303.6,0.002]
[1768689760426,5.39295513,3303.9,3303.6,0.002]
[1768689762424,5.39295513,3303.9,3303.6,0.5]
[1768689764530,5.39295513,3303.9,3303.5,0.498]
[1768689764930,5.39295513,3303.8,3303.1,5.59869244]
[1768689765137,5.39295513,3303.8,3303.2,0.498]
[1768689765435,5.39295513,3303.8,3303.2,6.09669244]
[1768689766134,5.39295513,3303.8,3302.7,5.59869244]
[1768689766341,5.39295513,3303.8,3302.8,0.498]
[1768689766638,5.39295513,3303.6,3302.8,0.498]
[1768689767312,5.39295513,3303.6,3302.8,6.09669244]
[1768689767515,5.39295513,3303.6,3302.8,0.498]
[1768689767713,5.39295513,3303.6,3302.9,0.498]
[1768689768619,5.39295513,3303.4,3302.9,0.498]
[1768689770640,5.39295513,3303.3,3303.0,0.498]
[1768689774841,5.39295513,3303.3,3302.7,5.76683582]
[1768689775047,5.39295513,3303.3,3303.1,0.498]
[1768689775950,5.8497511,3303.2,3302.6,5.76683582]
[1768689776127,5.8497511,3303.2,3302.7,6.26483582]
[1768689779623,5.8497511,3303.2,3303.0,0.002]
[1768689779845,5.8497511,3303.2,3303.1,0.498]
[1768689781648,5.8497511,3303.4,3303.1,0.498]
[1768689781820,3.02709247,3303.5,3303.1,6.26483582]
[1768689782428,3.02709247,3303.5,3303.1,5.76683582]
[1768689782748,3.02709247,3303.5,3303.2,6.26483582]
[1768689787756,5.8497511,3303.6,3303.2,5.76683582]
[1768689788058,5.8497511,3303.6,3303.3,0.498]
[1768689790764,3.02709247,3303.5,3303.3,0.498]
[1768689793374,3.02709247,3303.5,3303.2,5.76683582]
[1768689793375,5.8497511,3303.4,3303.1,0.002]
[1768689793619,5.8497511,3303.4,3303.2,0.498]
[1768689793733,3.02709247,3303.5,3303.2,0.498]
[1768689796060,5.8497511,3303.4,3303.2,0.498]
[1768689796260,5.8497511,3303.4,3303.1,0.5]
[1768689796836,5.8497511,3303.4,3303.1,1e-08]
[1768689797774,5.8497511,3303.2,3303.1,1e-08]
[1768689799974,5.8497511,3303.2,3303.0,0.002]
[1768689800374,3.02736825,3303.2,3303.0,0.002]
[1768689800580,5.8497511,3303.1,3303.0,0.002]
[1768689800979,3.02729801,3303.3,3303.0,0.002]
[1768689804700,9.37272117,3303.3,3303.0,0.002]
[1768689808895,6.34542316,3303.2,3303.0,0.002]
[1768689809504,3.02729801,3303.3,3303.0,0.002]
[1768689810107,9.37272117,3303.3,3303.0,0.002]
[1768689810802,6.34542316,3303.2,3302.7,0.498]
[1768689811586,6.34542316,3303.2,3302.7,6.93400019]
[1768689813592,3.02745905,3303.1,3302.7,6.93400019]
[1768689813990,3.02739982,3303.2,3302.7,6.93400019]
[1768689816992,3.02739982,3303.2,3303.0,0.002]
[1768689818388,6.85228078,3303.1,3302.6,0.002]
[1768689818599,6.85228078,3303.1,3302.7,0.498]
[1768689819871,9.87980864,3303.1,3302.7,0.498]
[1768689822996,9.87980864,3303.1,3302.6,6.55849953]
[1768689827778,6.85228078,3303.0,3302.6,0.002]
[1768689828998,6.85228078,3303.0,3302.9,0.002]
[1768689830892,9.87980864,3303.1,3302.9,0.002]
[1768689831282,6.85228078,3303.0,3302.9,0.002]
[1768689832504,9.87983149,3303.0,3302.9,0.002]
[1768689839005,3.02755071,3303.0,3302.9,0.002]
[1768689840080,6.637151,3303.0,3302.9,0.002]
[1768689840302,6.637151,3303.0,3302.6,0.002]
[1768689842078,6.637151,3303.0,3302.2,7.24089898]
[1768689842278,6.63795108,3302.8,3302.2,10.26915885]
[1768689842504,6.637151,3302.7,3301.8,7.24170517]
[1768689842801,4.40048689,3302.8,3301.8,7.24170517]
[1768689842802,6.637151,3302.4,3301.8,7.24170517]
[1768689844204,0.00160644,3302.5,3301.9,7.23889898]
[1768689844374,0.30455882,3302.5,3301.9,7.23889898]
[1768689844979,0.00160644,3302.5,3301.9,7.23889898]
[1768689845277,0.00160644,3302.5,3301.9,7.73689898]
[1768689846308,0.00160644,3302.5,3302.1,7.23889898]
[1768689849206,0.00160644,3302.5,3302.2,7.23889898]
[1768689850518,3.02757996,3303.0,3302.4,7.23889898]
[1768689850818,3.02757996,3303.0,3302.4,7.23969914]
[1768689851392,3.02745905,3303.1,3302.4,7.03969914]
[1768689853288,3.02745905,3303.1,3302.5,7.23889898]
[1768689853823,3.02745905,3303.1,3301.8,0.00280619]
[1768689853824,6.637151,3301.1,3300.4,0.00080569]
[1768689854494,7.54624328,3301.1,3300.4,0.00080569]
[1768689855513,6.637151,3300.9,3300.4,0.00080569]
[1768689855719,7.99765233,3300.9,3300.4,0.00080569]
[1768689855919,6.637151,3300.7,3300.3,1e-08]
[1768689858298,3.02975216,3300.6,3300.3,1e-08]
[1768689861327,6.637151,3300.6,3300.3,1e-08]
[1768689863732,7.00331322,3300.4,3300.3,1e-08]
[1768689864305,3.02984396,3300.5,3300.3,1e-08]
[1768689865136,3.02984396,3300.5,3300.3,0.00200001]
[1768689865834,3.02984396,3300.5,3300.3,7.38268518]
[1768689866041,3.02966037,3300.7,3300.3,7.38268518]
[1768689866707,3.02966037,3300.7,3300.2,0.002]
[1768689866919,10.3360202,3300.7,3300.2,0.002]
[1768689867314,10.3360202,3300.7,3300.2,7.38468518]
[1768689867520,13.36568057,3300.7,3300.2,7.38468518]
[1768689867721,10.3360202,3300.7,3300.2,7.38468518]
[1768689869146,13.36568057,3300.7,3300.2,7.38468518]
[1768689869514,10.3360202,3300.7,3300.2,7.38468518]
[1768689870005,13.36568057,3300.7,3300.2,7.38468518]
[1768689871230,6.36236735,3300.7,3300.2,7.38468518]
[1768689871441,7.00331322,3300.6,3300.2,7.38468518]
[1768689871931,10.03311797,3300.6,3300.2,7.38468518]
[1768689872337,3.02980475,3300.6,3300.2,7.38468518]
[1768689872652,3.02980475,3300.6,3300.3,0.498]
[1768689873346,10.03311797,3300.6,3300.3,0.498]
[1768689874526,3.03038447,3300.8,3300.3,7.24655615]
[1768689874721,3.03038447,3300.8,3300.4,7.74455615]
[1768689875249,0.00080569,3300.8,3300.4,7.74455615]
[1768689876048,0.00080569,3300.8,3300.4,7.24655615]
[1768689876348,0.00080569,3300.8,3300.3,7.24655615]
[1768689876549,0.00080569,3300.8,3300.5,7.24655615]
[1768689883232,0.00080569,3300.8,3300.4,3.52792818]
[1768689883233,0.00080569,3300.8,3300.6,7.74455615]
[1768689884137,3.03001264,3301.2,3300.7,7.24655615]
[1768689884138,0.00080642,3301.2,3300.7,7.24655615]
[1768689884444,0.00080642,3301.2,3300.6,3.52775216]
[1768689884445,0.00160552,3301.5,3300.9,7.24655615]
[1768689884651,0.00160552,3301.5,3301.1,7.24655615]
[1768689888626,0.001,3301.2,3301.1,7.24655615]
[1768689888826,0.00160552,3301.5,3301.1,7.24655615]
[1768689890358,7.37637959,3301.5,3301.1,7.24655615]
[1768689893860,0.00160552,3301.5,3301.1,7.24655615]
[1768689894426,0.00160552,3301.5,3301.2,0.498]
[1768689894631,0.00160552,3301.5,3301.2,8.18202644]
[1768689894942,0.00160552,3301.5,3301.3,0.498]
[1768689895143,0.00160552,3301.5,3301.3,8.18202644]
[1768689900560,0.00160488,3301.8,3301.4,7.68402644]
[1768689900763,0.00160488,3301.8,3301.4,7.49124607]
[1768689901268,0.00160488,3301.8,3301.4,7.28207836]
[1768689902060,0.00160488,3301.8,3301.4,7.08929229]
[1768689902672,0.00160488,3301.8,3301.4,6.78638536]
[1768689902847,0.00160488,3301.8,3301.4,5.89910722]
[1768689906372,0.00160488,3301.8,3301.5,0.498]
[1768689907171,7.80998307,3301.5,3301.1,0.00160568]
[1768689908472,7.80998307,3301.5,3301.1,0.49960568]
[1768689909041,7.80998307,3301.4,3301.1,0.49960568]
[1768689910846,7.80998307,3301.4,3301.1,0.00160568]
[1768689911054,10.83901033,3301.4,3301.1,0.00160568]
[1768689911252,7.80998307,3301.3,3301.1,0.00160568]
[1768689912552,7.80998307,3301.3,3301.1,0.00360568]
[1768689914051,10.83901033,3301.4,3301.1,0.00360568]
[1768689914247,7.80998307,3301.3,3301.1,0.00360568]
[1768689915914,3.02902726,3301.4,3301.1,0.00360568]
[1768689916092,10.83901033,3301.4,3301.1,0.00360568]
[1768689916750,3.02995699,3301.5,3301.1,0.00360568]
[1768689916950,3.02995699,3301.5,3301.1,7.68763212]
[1768689917189,0.001,3301.5,3301.1,7.68763212]
[1768689918260,3.02994158,3301.5,3301.1,7.68763212]
[1768689918960,0.001,3301.5,3301.1,7.68763212]
[1768689919161,0.001,3301.5,3301.2,8.18202644]
[1768689920295,7.81098307,3301.5,3301.1,0.00360568]
[1768689920496,7.81098307,3301.5,3301.2,0.498]
[1768689920895,0.001,3301.5,3301.2,0.498]
[1768689921281,0.001,3301.5,3301.2,8.18202644]
[1768689926901,0.001,3301.5,3301.2,7.68402644]
[1768689927094,9.94224957,3301.5,3301.3,0.498]
[1768689927294,9.94224957,3301.5,3301.1,0.50160568]
[1768689927475,8.48771938,3301.5,3301.1,0.50160568]
[1768689930204,11.51668398,3301.5,3301.1,0.50160568]
[1768689930777,8.48671938,3301.4,3301.1,0.50160568]
[1768689940311,11.51573804,3301.4,3301.1,0.50160568]
[1768689940916,8.48671938,3301.4,3301.1,0.50160568]
[1768689946216,3.02994857,3301.5,3301.1,0.50160568]
[1768689946521,3.02994857,3301.5,3301.1,9.36634068]
[1768689947336,0.001,3301.5,3301.1,9.36634068]
[1768689947647,0.001,3301.5,3300.8,0.0008065]
[1768689947648,8.78199877,3301.4,3300.8,0.0008065]
[1768689949408,3.02910974,3301.3,3300.9,0.498]
[1768689949610,8.78199877,3301.2,3300.8,0.4988065]
[1768689950139,3.02910974,3301.3,3300.9,8.864735]
[1768689951407,3.02905475,3301.4,3300.9,8.864735]
[1768689952341,11.62738409,3301.4,3300.9,8.864735]
[1768689954142,3.02905475,3301.4,3300.9,8.864735]
[1768689955253,8.59832934,3301.3,3300.8,0.4988065]
[1768689956234,11.62750106,3301.3,3300.8,0.4988065]
[1768689957347,11.62750106,3301.3,3300.8,0.0008065]
[1768689957529,11.62750106,3301.3,3300.8,0.4988065]
[1768689958415,8.59832934,3301.2,3300.8,0.4988065]
[1768689959231,0.001,3301.1,3300.8,0.4988065]
[1768689959643,8.59932934,3301.1,3300.8,0.4988065]
[1768689960445,0.001,3301.1,3300.8,0.4988065]
[1768689962659,8.59932934,3301.1,3300.8,0.4988065]
[1768689964958,0.00080577,3300.8,3299.0,0.002]
[1768689965158,0.00080577,3300.8,3298.7,8.68786532]
[1768689965159,8.59832934,3299.7,3298.7,8.68786532]
[1768689965467,8.59832934,3299.5,3298.7,0.00280931]
[1768689965833,0.499,3299.6,3298.7,0.00280931]
[1768689965834,8.59832934,3299.3,3298.7,0.00280931]
[1768689966844,10.06433309,3299.3,3298.7,0.00280931]
[1768689968871,8.59832934,3299.1,3298.7,0.00280931]
[1768689969179,8.59832934,3299.1,3298.4,0.002]
[1768689969337,8.59832934,3299.1,3296.6,0.12880834]
[1768689969338,8.59832934,3299.1,3297.0,8.68505601]
[1768689969339,9.11665781,3298.2,3297.0,8.68505601]
[1768689969537,9.09133025,3298.2,3297.2,8.68505601]
[1768689969743,0.00080792,3298.3,3297.2,9.18305601]
[1768689970070,0.00080792,3298.3,3297.4,8.68505601]
[1768689970276,0.00080792,3298.3,3297.6,8.68505601]
[1768689970439,0.00080792,3298.3,3297.8,8.68505601]
[1768689970874,8.59832934,3298.2,3296.7,8.68505601]
[1768689971058,8.59832934,3298.0,3297.3,8.68505601]
[1768689972268,8.59832934,3298.0,3297.2,3.03280225]
[1768689972870,8.59832934,3297.8,3296.9,3.03314998]
[1768689973078,8.59832934,3297.8,3296.9,11.71820599]
[1768689973255,8.59832934,3297.8,3297.0,8.68505601]
[1768689973963,9.09732934,3298.1,3297.0,8.68505601]
[1768689974878,9.09732934,3298.1,3297.1,6.06593672]
[1768689975041,0.00080792,3298.3,3297.2,9.18405601]
[1768689975241,5.56815671,3299.0,3297.4,8.68505601]
[1768689975242,8.59932934,3299.0,3297.4,8.68505601]
[1768689975441,8.59932934,3299.0,3298.0,8.68505601]
[1768689975442,0.001,3299.0,3298.0,8.68505601]
[1768689975675,0.001,3299.0,3298.0,9.18405601]
[1768689975867,0.001,3299.0,3298.2,8.68505601]
[1768689976068,0.499,3299.5,3298.8,8.68505601]
[1768689977383,8.59832934,3298.8,3298.0,8.68505601]
[1768689978781,8.59832934,3298.8,3298.1,3.03204004]
[1768689980275,11.62976691,3298.8,3298.1,3.03204004]
[1768689981447,11.62976691,3298.8,3298.1,11.71709605]
[1768689982476,8.59832934,3298.8,3298.4,0.002]
[1768689982779,9.74122883,3299.0,3298.4,0.002]
[1768689983279,11.01854703,3299.0,3298.4,0.002]
[1768689984279,9.24222883,3299.0,3298.4,9.09132217]
[1768689984576,0.001,3299.0,3298.4,9.09132217]
[1768689985389,9.24222883,3299.0,3298.4,9.09132217]
[1768689986459,9.24222883,3299.0,3298.4,12.12306176]
[1768689986789,9.24222883,3299.0,3298.4,3.03373959]
[1768689986991,9.24122883,3298.9,3298.4,0.002]
[1768689988385,3.03138421,3298.9,3298.4,0.002]
[1768689988565,9.24122883,3298.8,3298.4,0.002]
[1768689989389,0.001,3299.0,3298.4,9.09132217]
[1768689990388,0.001,3299.0,3298.5,9.08932217]
[1768689993281,0.001,3299.0,3298.6,9.08932217]
[1768689994821,0.001,3298.7,3298.6,9.08932217]
[1768690005132,0.001,3298.7,3298.4,13.20867636]
[1768690005504,0.001,3298.7,3298.5,9.6759356]
[1768690007143,0.001,3298.7,3298.4,3.53274076]
[1768690007509,0.001,3298.7,3298.5,9.6759356]
[1768690007843,0.001,3299.0,3298.6,9.6759356]
[1768690009812,0.001,3299.0,3298.7,9.6759356]
[1768690012013,0.001,3299.0,3298.7,12.70742291]
[1768690012214,0.001,3299.0,3298.8,9.55332145]